Cogmind - Beta 9.2 @@@ ROGUE MODE // 2019.11.28 @ 16:36:30 Player: Cipherpunk Result: Destroyed by Y-45 Defender with Beam Rifle Performance ------------- Evolutions (1) 500 Regions Visited (2) 400 Robots Destroyed (44) 220 Value Destroyed (955) 955 Prototype IDs (1) 20 Alien Tech Used (0) 0 Bonus (72) 72 TOTAL SCORE: 2167 Bonus ------- High Alert Combat Kills 72 Cogmind --------- Core Integrity 0/400 Matter 276/300 Energy 250/250 System Corruption 0% Temperature Cool (9) Movement Walking (120) Location -9/Materials Parts ------- > --- POWER (1) -------- Ion Engine > --- PROPULSION (4) --- Aluminum Leg Aluminum Leg Aluminum Leg Improved Aluminum Leg > --- UTILITY (2) ------ Small Storage Unit Medium Storage Unit > --- WEAPON (2) ------- Improved Assault Rifle Improved Assault Rifle > --- INVENTORY (10) --- Light Treads Aluminum Leg Aluminum Leg Visual Processing Unit Improved Sensor Array Signal Interpreter Medium Armor Plating Tractor Beam Improved Assault Rifle Datajack Peak State ------------ > --- POWER ------------ Reinforced Ion Engine > --- PROPULSION ------- Aluminum Leg Aluminum Leg Aluminum Leg Aluminum Leg > --- UTILITY ---------- Small Storage Unit Small Storage Unit > --- WEAPON ----------- Improved Assault Rifle Improved Assault Rifle > --- INVENTORY -------- Ion Engine Aluminum Leg Improved Sensor Array Signal Interpreter Medium Armor Plating Assault Rifle Assault Rifle Datajack [Rating: 15] Favorites ----------- Power Ion Engine Engine Ion Engine Propulsion Aluminum Leg Treads Light Treads Leg Aluminum Leg Utility Small Storage Unit Storage Small Storage Unit Weapon Improved Assault Rifle Energy Gun EM Pulse Gun Ballistic Gun Improved Assault Rifle Build | -11 -10 -9 ------- Run | Scr Mat Mat Slots Evolved 2 | . . 2 Power . | . . . Propulsion 2 | . . 2 Utility . | . . . Weapon . | . . . Parts Attached 33 | 7 . 26 Power 3 | 1 . 2 Engine 3 | 1 . 2 Core . | . . . Reactor . | . . . Propulsion 19 | 2 . 17 Treads 1 | . . 1 Leg 18 | 2 . 16 Wheel . | . . . Hover . | . . . Flight . | . . . Utility 3 | 2 . 1 Device . | . . . Storage 3 | 2 . 1 Processor . | . . . Hackware . | . . . Protection . | . . . Artifact . | . . . Weapon 8 | 2 . 6 Energy Gun 1 | 1 . . Energy Cannon . | . . . Ballistic Gun 7 | 1 . 6 Ballistic Cannon . | . . . Launcher . | . . . Special Weapon . | . . . Impact Weapon . | . . . Slashing Weapon . | . . . Piercing Weapon . | . . . Special Melee Weapon . | . . . Unidentified Prototypes 1 | . . 1 Parts Lost 11 | . . 11 Power 1 | . . 1 Propulsion 8 | . . 8 Utility . | . . . Weapon 2 | . . 2 Highest Loss Streak 6 | . . 6 Average Slot Usage (%) 93 | . 100 92 Engine 11 | . 14 10 Leg 35 | . 28 37 Storage 23 | . 28 22 Energy Gun 2 | . 14 . Ballistic Gun 20 | . 14 21 Naked Turns . | . . . Heaviest Build 28 | 17 17 28 Greatest Support 43 | 20 20 43 Greatest Overweight (x) 5 | 2 . 5 Average Overweight (x) . | . . . Largest Inventory Capacity 10 | 8 8 10 Average Capacity 8 | 6 8 8 Most Carried 10 | 2 8 10 Average Carried 7 | 1 5 8 Final Capacity 10 | 8 8 10 Final Carried 10 | 2 8 10 Class Distribution -------------------- 59% | Mutant 40% | Scavenger-Mutant Dominant Class ---------------- Mutant | -10/Materials Scavenger-Mutant | -9/Materials Resources | -11 -10 -9 ----------- Run | Scr Mat Mat Matter Collected 1035 | 170 . 865 Remotely . | . . . Salvage Created 1389 | 71 66 1252 Parts 93 | 2 8 83 Haulers Intercepted 1 | . . 1 Recyclers Shooed . | . . . Parts Field Recycled . | . . . Retrieved Matter . | . . . Parts Self-Destructed . | . . . Prevented . | . . . Kills | -11 -10 -9 ------- Run | Scr Mat Mat Combat Hostiles Destroyed 36 | . 1 35 Guns 36 | . 1 35 Classes Destroyed 9 | 1 3 5 Worker 3 | . . 3 Hauler 1 | . . 1 Recycler 2 | 1 . 1 Operator 1 | . 1 . Watcher 1 | . 1 . Swarmer 16 | . . 16 Grunt 15 | . 1 14 Brawler 1 | . . 1 Sentry 4 | . . 4 Best Kill Streak 11 | 1 1 11 Combat Bots Only 9 | . 1 9 Max Kills in Single Turn 2 | 1 1 2 Gunslinging 1 | . . 1 Exploded . | . . . Melee . | . . . Uniques/NPCs Destroyed . | . . . Combat | -11 -10 -9 -------- Run | Scr Mat Mat Damage Taken 2314 | . 45 2269 Core 424 | . 11 413 Absorbed by Shields . | . . . Core Remaining (%) 97 | 100 95 . Volleys Fired 97 | 3 5 89 Largest 2 | 2 2 2 Hottest 60 | 60 60 46 Shots Fired 192 | 6 10 176 Gun 192 | 6 10 176 Cannon . | . . . Launcher . | . . . Special . | . . . Kinetic 184 | 3 5 176 Thermal . | . . . Explosive . | . . . Electromagnetic 8 | 3 5 . Robot Hit Streak 25 | 2 5 25 Robot Miss Streak 5 | 1 1 5 Penetration Max . | . . . Secondary Targets 6 | . . 6 Max Gunslinging Chain 1 | . . 1 Shots Hit Robots 134 | 3 8 123 Core Hits 61 | 2 4 55 Critical Hits . | . . . Critical Kills . | . . . Critical Parts Destroyed . | . . . Melee Attacks . | . . . Impact . | . . . Slashing . | . . . Piercing . | . . . Sneak Attacks . | . . . Combat Hostiles . | . . . Follow-up Attacks . | . . . Damage Inflicted 1901 | 24 92 1785 Guns 1901 | 24 92 1785 Cannons . | . . . Explosions . | . . . Melee . | . . . Ramming . | . . . Kinetic 1856 | 24 47 1785 Thermal . | . . . Explosive . | . . . Electromagnetic 45 | . 45 . Impact . | . . . Slashing . | . . . Piercing . | . . . Highest Corruption 4 | . 4 . Average Corruption 3 | . 3 . Corruption Purged . | . . . Effects 2 | . 2 . Message Errors 1 | . 1 . Data Loss (minor) 1 | . 1 . Overload Shots . | . . . Overflow Damage . | . . . Projectiles . | . . . Explosions . | . . . Melee . | . . . Knockbacks . | . . . Impact . | . . . Kinetic . | . . . Secondary . | . . . Self-Inflicted Damage . | . . . Shots . | . . . Rammed . | . . . Targets Rammed . | . . . Kicked . | . . . Crushed . | . . . Highest Temperature 18 | . 18 8 Average Temperature 4 | . 13 2 Received Heat Transfer 567 | . 24 543 Siege Activations . | . . . Robots Corrupted . | . . . Combat Hostiles . | . . . Parts Fried . | . . . Impact Corruptions . | . . . Robots Melted . | . . . Combat Hostiles . | . . . Parts Melted . | . . . Heat Transferred . | . . . Parts Sabotaged . | . . . Parts Stolen . | . . . Parts Stripped . | . . . Power Chain Reactions . | . . . Missiles Intercepted . | . . . Alert | -11 -10 -9 ------- Run | Scr Mat Mat Peak Influence 581 | 5 105 581 Average Influence 208 | 1 49 255 Maximum Alert Level 2 | . . 2 Low Security (%) 55 | 100 100 43 Level 1 26 | . . 34 Level 2 17 | . . 22 Level 3 . | . . . Level 4 . | . . . Level 5 . | . . . High Security . | . . . Max Security . | . . . Squads Dispatched 4 | . 1 3 Investigation 1 | . . 1 Extermination . | . . . Reinforcement 3 | . 1 2 Assault . | . . . Garrison . | . . . Intercept . | . . . Construction Impeded 1 | . . 1 Haulers Reinforced . | . . . Stealth | -11 -10 -9 --------- Run | Scr Mat Mat Distress Signals 3 | . . 3 Communications Jammed . | . . . Distress Signals . | . . . Times Spotted 63 | . 6 57 Peak Tracking Total 12 | . 2 12 Tactical Retreats 5 | . . 5 Traps | -11 -10 -9 ------- Run | Scr Mat Mat Traps Triggered 3 | . 2 1 Indirectly . | . . . Trap Hack Attempts . | . . . Triggered . | . . . Disarmed . | . . . Reprogrammed . | . . . Reused . | . . . Traps Extracted . | . . . Installed . | . . . Triggered . | . . . Machines | -11 -10 -9 ---------- Run | Scr Mat Mat Machines Disabled 2 | . . 2 Max in Single Turn 1 | . . 1 Machines Sabotaged . | . . . Garrisons Compromised . | . . . Overloaded Fab Kills . | . . . Fab Network Shutdowns . | . . . Hacking | -11 -10 -9 --------- Run | Scr Mat Mat Machines Accessed . | . . . Terminals . | . . . Fabricators . | . . . Repair Stations . | . . . Recycling Units . | . . . Scanalyzers . | . . . Garrison Access . | . . . Total Hacks . | . . . Successful . | . . . Failed . | . . . Catastrophic . | . . . Database Lockouts . | . . . Manual . | . . . Terminals . | . . . Fabricators . | . . . Repair Stations . | . . . Recycling Units . | . . . Scanalyzers . | . . . Garrison Access . | . . . Terminal Hacks . | . . . Fabricator Hacks . | . . . Repair Station Hacks . | . . . Recycling Unit Hacks . | . . . Scanalyzer . | . . . Garrison Access Hacks . | . . . Unauthorized Hacks . | . . . Terminals . | . . . Fabricators . | . . . Repair Stations . | . . . Recycling Units . | . . . Scanalyzers . | . . . Garrison Access . | . . . Data Cores Recovered . | . . . Used . | . . . Hacking Detections . | . . . Full Trace Events . | . . . Feedback Events . | . . . Feedback Blocked . | . . . Robot Schematics Acquired . | . . . Robots Built . | . . . Matter . | . . . Time . | . . . Total Robot Build Rating . | . . . Part Schematics Acquired . | . . . Parts Built . | . . . Matter . | . . . Time . | . . . Total Part Build Rating . | . . . Parts Repaired . | . . . Time . | . . . Parts Recycled . | . . . Recycled Matter . | . . . Retrieved Matter . | . . . Retrieved Components . | . . . Parts Scanalyzed . | . . . Part Schematics Acquired . | . . . Parts Damaged . | . . . Bothacking | -11 -10 -9 ------------ Run | Scr Mat Mat Used RIF Installer . | . . . Robots Hacked . | . . . Non-combat . | . . . Combat . | . . . Robot Hacks Applied . | . . . Relay Couplers Released . | . . . Robots Rewired . | . . . Allies Hacked . | . . . Hacks Repelled . | . . . Allies | -11 -10 -9 -------- Run | Scr Mat Mat Total Allies . | . . . Largest Group . | . . . Highest-Rated Group . | . . . Highest-Rated Ally . | . . . Total Orders . | . . . Ally Attacks . | . . . Total Damage . | . . . Kills . | . . . Allies Corrupted . | . . . Allies Melted . | . . . Intel | -11 -10 -9 ------- Run | Scr Mat Mat Robot Analysis Total . | . . . Derelict Logs Recovered . | . . . Drone Launches . | . . . Drone Recoveries . | . . . Exploration | -11 -10 -9 ------------- Run | Scr Mat Mat Turns Passed 1133 | 68 174 891 Spaces Moved 575 | 41 116 418 Core 7 | 6 . 1 Treads . | . . . Legs 568 | 35 116 417 Wheels . | . . . Hover . | . . . Flight . | . . . Fastest Speed 50 | 50 120 120 Average Speed 122 | 114 120 123 Slowest Speed 300 | 150 120 300 Overloaded Moves . | . . . Propulsion Burnouts . | . . . Robots Hopped . | . . . Cave-ins Triggered . | . . . Exploration Rate (%) 24 | 4 32 36 Regions Visited 2 Branch Regions . Pre-discovered Areas . | . . . Known Exits Taken . | . . . Unknown Exits Taken 2 | 1 1 . Scrap Searched . | . . . Spaces Dug . | . . . Terrain Destroyed . | . . . Melee . | . . . Projectile . | . . . AOE . | . . . Actions | -11 -10 -9 --------- Run | Scr Mat Mat Total 817 | 52 143 622 Wait 68 | . 9 59 Move 573 | 40 115 418 Hop . | . . . Pick Up 25 | 2 10 13 Fast Attach 15 | 7 . 8 Attach 6 | . . 6 Detach 1 | . . 1 Swap 12 | . . 12 Drop 20 | . 4 16 Fire 97 | 3 5 89 Melee . | . . . Ram . | . . . Kick . | . . . Crush . | . . . Escape Stasis . | . . . Rewire . | . . . Trap . | . . . Miscellaneous . | . . . Route ------- -11/Scrapyard -10/Materials -9/Materials (discovered 1 exit: [*Min]) History --------- Turn | Location | Event 12 | -11/Scrapyard | Discovered new exit (range 14) 69 | -11/Scrapyard | Entered Materials 180 | -10/Materials | Discovered new exit (range 11) 243 | -10/Materials | Entered another Materials area 243 | -9/Materials | Evolved 2 slots: Propulsion x2 311 | -9/Materials | Build established: Mutant 655 | -9/Materials | Discovered new exit (range 15) 845 | -9/Materials | Lost 3 parts (3n) 870 | -9/Materials | Core integrity fell below 50% 955 | -9/Materials | Lost 6 parts (4n2w) 958 | -9/Materials | Core integrity fell below 20% 1004 | -9/Materials | Destroyed 9 combat bots 1134 | -9/Materials | Destroyed by Y-45 Defender with Beam Rifle Last Messages --------------- 01000_ Acquired 62 matter. 01002_ K-01 Serf collects debris. 01007_ Acquired Tractor Beam. 01008_ K-01 Serf collects debris. 01011_ K-01 Serf cleans the Nuclear Reactor. 01016_ Acquired Lgt. Treads. 01025_ K-01 Serf destroyed. 01028_ Hadron Collector disabled. 01034_ G-34 Mercenary destroyed. 01043_ Switching to secondary target: G-34 Mercenary. 01046_ Acquired 16 matter. 01049_ Acquired 11 matter. 01052_ Acquired Aluminum Leg. 01054_ Acquired 46 matter. 01058_ G-34 Mercenary destroyed. 01073_ Acquired 47 matter. 01076_ Acquired Aluminum Leg. 01107_ S-10 Pest destroyed. 01119_ U-05 Engineer builds a Door. 01120_ Acquired 16 matter. Map ----- +----------------------------------------------------+ | ????????????????????????????# """ !# < ""###"""" | | ????????????????????????????# """* # !!# | | ????????????????????????????# ==[ # ""# | | ??????????????????#?????????# [ %# "# | | ????????????????### #???????# *=[## #### | | ????????????????# ############+##! ########## | | ????????????????# %%% * | | ????????????????# =%*!%!! | | ?????????????????? *[ %"" """ """ ! | | ?????????????????? ##### ! ! """ """ """ ! | | ????????????????????##???#T =! * """ "" """ ! | | ???????????????# ???## =! """ """ """ | | ???????????????# """ ""#?# % | | ???????????????# """ ""#?# | | ???????????????# """ T"#?# [ ##+####### | | ???????????????# ""#?# %! ## ?????# | | ???????????????# """ ""#?# ## ?????? | | ???????????????# """ ### ####### ## ! ????? | | ???????????????# """ + #?????# ## ????? | | ???????????????# ####+######?# ## ???? | | ???????????????########## #?# ## [[[???? | | ????????????????????????# u #?# ## [[ #??? | | ????????????????????????#a""" """ #?# #? [[ #??? | | ???????????????##########=""" """ #?# #? #??? | | ???????????+ [[Y%""" """ #? ?## ##??? | | ???????????# ####@ #? ???##???? | | ???????????# ???????# = #? ????????? | | ????????? / ???????????# #? ????????? | | ????????????????????????############ ????????? | | ?????????????????????????????????????# #?????????? | | ?????????????????????????????????????????????????? | | ?????????????????????????????????????????????????? | | ?????????????????????????????????????????????????? | | ?????????????????????????????????????????????????? | | ?????????????????????????????????????????????????? | | ?????????????????????????????????????????????????? | | ?????????????????????????????????????????????????? | | ?????????????????????????????????????????????????? | | ?????????????????????????????????????????????????? | | ?????????????????????????????????????????????????? | | ?????????????????????????????????????????????????? | | ?????????????????????????????????????????????????? | | ?????????????????????????????????????????????????? | | ?????????????????????????????????????????????????? | | ?????????????????????????????????????????????????? | | ?????????????????????????????????????????????????? | | ?????????????????????????????????????????????????? | | ?????????????????????????????????????????????????? | | ?????????????????????????????????????????????????? | | ?????????????????????????????????????????????????? | +----------------------------------------------------+ Best States ------------- Heat Dissipation 28 Energy Generation 12 Energy Capacity 265 Matter Stores 300 Matter Capacity 300 Sight Range 16 Terrain Scan Density 10 Evasion (%) 40 Item Schematics ----------------- None Robot Schematics ------------------ None Fabricated ------------ Nothing Alien Tech Used ----------------- None Achievements -------------- None Challenges ------------ None Game ------ Seed GuidedAssaultLoader Manual? 0 Play Time 00:14:20 Cumulative 22.5 hours Start 2019.11.28 @ 16:22:11 End 2019.11.28 @ 16:36:30 Sessions 1 Manual Loads 0 Difficulty Rogue Special Mode None Game No. 19 Rogue 19 Adventurer 0 Explorer 0 Win Type - Total 0 Types 0/0/0/0/0/0/0 Lore% 16 Gallery% 31 Achievement% 19 Wizard Run 0 Options --------- ASCII 0 Keyboard 1 Movement Numpad Keybinds 0 Fullscreen 2 Font 18/SmallcapsGlow Map View 76x50 Tactical HUD 1 Map Filters NONE Filters NONE Steam 1 RUN: 71a9e64c-0b49-4772-ac32-01871d128026